[Event "Titled Tuesday Blitz October 25 Late 2022"]
[White "Goltsev, Dmitry"]
[Black "Sorokin, Aleksey"]
[WhiteFideId "24176710"]
[BlackFideId "24176460"]
[WhiteElo "2257"]
[BlackElo "2476"]
[Result "0-1"]
[Round "03"]
[TimeControl "180+1"]
[Date "2022.10.26"]
[WhiteClock "0:00:04"]
[BlackClock "0:00:14"]

1. e4 {[%clk 0:03:00]}  c6 {[%clk 0:02:59]} 2. Nf3 {[%clk 0:03:01]}  d5 {[%clk 0:02:59]} 3. Nc3 {[%clk 0:03:02]}  Bg4 {[%clk 0:02:56]} 4. d4 {[%clk 0:03:01]}  dxe4 {[%clk 0:02:54]} 5. Nxe4 {[%clk 0:03:02]}  Nd7 {[%clk 0:02:52]} 6. h3 {[%clk 0:03:00]}  Bxf3 {[%clk 0:02:52]} 7. Qxf3 {[%clk 0:03:01]}  Ngf6 {[%clk 0:02:52]} 8. c3 {[%clk 0:03:01]}  Nxe4 {[%clk 0:02:51]} 9. Qxe4 {[%clk 0:03:02]}  Nf6 {[%clk 0:02:51]} 10. Qc2 {[%clk 0:03:02]}  Qd5 {[%clk 0:02:51]} 11. Be3 {[%clk 0:02:57]}  e5 {[%clk 0:02:45]} 12. Qb3 {[%clk 0:02:58]}  O-O-O {[%clk 0:02:39]} 13. Qxd5 {[%clk 0:02:56]}  Nxd5 {[%clk 0:02:39]} 14. dxe5 {[%clk 0:02:56]}  Nxe3 {[%clk 0:02:38]} 15. fxe3 {[%clk 0:02:57]}  Bc5 {[%clk 0:02:38]} 16. Rd1 {[%clk 0:02:56]}  Bxe3 {[%clk 0:02:29]} 17. Bc4 {[%clk 0:02:50]}  Rde8 {[%clk 0:02:25]} 18. e6 {[%clk 0:02:44]}  fxe6 {[%clk 0:02:23]} 19. Ke2 {[%clk 0:02:42]}  Bc5 {[%clk 0:02:16]} 20. Rhf1 {[%clk 0:02:42]}  Re7 {[%clk 0:02:12]} 21. b4 {[%clk 0:02:41]}  Bb6 {[%clk 0:02:12]} 22. Rd6 {[%clk 0:02:41]}  Rhe8 {[%clk 0:02:09]} 23. a4 {[%clk 0:02:35]}  Bc7 {[%clk 0:02:09]} 24. Rd4 {[%clk 0:02:33]}  Be5 {[%clk 0:02:09]} 25. Rd3 {[%clk 0:02:33]}  Kc7 {[%clk 0:02:06]} 26. Kd2 {[%clk 0:02:31]}  Bf6 {[%clk 0:02:05]} 27. g4 {[%clk 0:02:24]}  e5 {[%clk 0:02:04]} 28. Kc2 {[%clk 0:02:24]}  e4 {[%clk 0:02:04]} 29. Re3 {[%clk 0:02:25]}  Bg5 {[%clk 0:02:03]} 30. Re2 {[%clk 0:02:24]}  e3 {[%clk 0:02:04]} 31. b5 {[%clk 0:02:18]}  Rd8 {[%clk 0:02:03]} 32. Bd3 {[%clk 0:02:12]}  g6 {[%clk 0:02:00]} 33. Rd1 {[%clk 0:02:03]}  Red7 {[%clk 0:01:59]} 34. h4 {[%clk 0:01:46]}  Bf4 {[%clk 0:01:55]} 35. h5 {[%clk 0:01:45]}  gxh5 {[%clk 0:01:47]} 36. gxh5 {[%clk 0:01:46]}  h6 {[%clk 0:01:47]} 37. Rg2 {[%clk 0:01:39]}  Bg5 {[%clk 0:01:44]} 38. Re2 {[%clk 0:01:27]}  c5 {[%clk 0:01:43]} 39. c4 {[%clk 0:01:23]}  Kb6 {[%clk 0:01:42]} 40. Kc3 {[%clk 0:01:21]}  Ka5 {[%clk 0:01:39]} 41. Rg2 {[%clk 0:01:15]}  a6 {[%clk 0:01:28]} 42. bxa6 {[%clk 0:01:11]}  bxa6 {[%clk 0:01:27]} 43. Re2 {[%clk 0:01:08]}  Rb8 {[%clk 0:01:25]} 44. Rf1 {[%clk 0:01:05]}  Rd6 {[%clk 0:01:21]} 45. Kc2 {[%clk 0:01:03]}  Bf6 {[%clk 0:01:17]} 46. Rxe3 {[%clk 0:00:59]}  Rb2+ {[%clk 0:01:17]} 47. Kc1 {[%clk 0:00:58]}  Ra2 {[%clk 0:01:12]} 48. Re2 {[%clk 0:00:46]}  Ra3 {[%clk 0:01:04]} 49. Bb1 {[%clk 0:00:42]}  Kb4 {[%clk 0:01:01]} 50. Bf5 {[%clk 0:00:24]}  Rxa4 {[%clk 0:00:48]} 51. Rf3 {[%clk 0:00:22]}  Ra1+ {[%clk 0:00:42]} 52. Bb1 {[%clk 0:00:22]}  a5 {[%clk 0:00:41]} 53. Ref2 {[%clk 0:00:17]}  Bd4 {[%clk 0:00:39]} 54. Rg2 {[%clk 0:00:16]}  a4 {[%clk 0:00:39]} 55. Rg6 {[%clk 0:00:14]}  Rxg6 {[%clk 0:00:31]} 56. hxg6 {[%clk 0:00:15]}  a3 {[%clk 0:00:31]} 57. Kc2 {[%clk 0:00:11]}  a2 {[%clk 0:00:32]} 58. Bxa2 {[%clk 0:00:07]}  Rxa2+ {[%clk 0:00:33]} 59. Kb1 {[%clk 0:00:08]}  Rb2+ {[%clk 0:00:31]} 60. Kc1 {[%clk 0:00:07]}  Rg2 {[%clk 0:00:32]} 61. Rh3 {[%clk 0:00:04]}  Rxg6 {[%clk 0:00:32]} 62. Kb1 {[%clk 0:00:04]}  Kxc4 {[%clk 0:00:31]} 63. Ka2 {[%clk 0:00:04]}  Rb6 {[%clk 0:00:24]} 64. Rf3 {[%clk 0:00:01]}  Ra6+ {[%clk 0:00:24]} 65. Kb1 {[%clk 0:00:02]}  Ra1+ {[%clk 0:00:24]} 66. Kc2 {[%clk 0:00:03]}  Ra2+ {[%clk 0:00:24]} 67. Kb1 {[%clk 0:00:03]}  Rf2 {[%clk 0:00:24]} 68. Rh3 {[%clk 0:00:03]}  Kb4 {[%clk 0:00:16]} 69. Rxh6 {[%clk 0:00:03]}  c4 {[%clk 0:00:16]} 70. Rh4 {[%clk 0:00:03]}  Kb3 {[%clk 0:00:15]} 71. Kc1 {[%clk 0:00:03]}  c3 {[%clk 0:00:13]} 72. Rxd4 {[%clk 0:00:03]}  Rf1+ {[%clk 0:00:13]} 73. Rd1 {[%clk 0:00:03]}  Rxd1+ {[%clk 0:00:13]} 74. Kxd1 {[%clk 0:00:04]}  Kb2 {[%clk 0:00:14]} 0-1


[Site "https://www.chess.com"]

[Event "Titled Tuesday Blitz October 25 Late 2022"]
[White "Harish, Neeraj"]
[Black "Sanchez, Robert"]
[WhiteFideId "30958130"]
[BlackFideId "2034360"]
[WhiteElo "1815"]
[BlackElo "2392"]
[Result "0-1"]
[Round "03"]
[TimeControl "180+1"]
[Date "2022.10.26"]
[WhiteClock "0:00:01"]
[BlackClock "0:00:06"]

1. e4 {[%clk 0:03:00]}  c5 {[%clk 0:02:55]} 2. Nf3 {[%clk 0:02:58]}  e6 {[%clk 0:02:55]} 3. d4 {[%clk 0:02:57]}  cxd4 {[%clk 0:02:52]} 4. Nxd4 {[%clk 0:02:57]}  Qc7 {[%clk 0:02:53]} 5. c4 {[%clk 0:02:48]}  a6 {[%clk 0:02:53]} 6. Nc3 {[%clk 0:02:47]}  Nf6 {[%clk 0:02:51]} 7. Bd3 {[%clk 0:02:29]}  Nc6 {[%clk 0:02:48]} 8. Be3 {[%clk 0:02:29]}  d6 {[%clk 0:02:44]} 9. O-O {[%clk 0:02:28]}  Be7 {[%clk 0:02:37]} 10. Qe2 {[%clk 0:02:23]}  O-O {[%clk 0:02:35]} 11. f3 {[%clk 0:02:10]}  Ne5 {[%clk 0:02:26]} 12. b3 {[%clk 0:02:08]}  Nxd3 {[%clk 0:02:24]} 13. Qxd3 {[%clk 0:02:09]}  Rd8 {[%clk 0:02:18]} 14. Rac1 {[%clk 0:02:04]}  Nd7 {[%clk 0:02:02]} 15. Rfd1 {[%clk 0:01:55]}  Nc5 {[%clk 0:01:57]} 16. Qe2 {[%clk 0:01:49]}  Qa5 {[%clk 0:01:54]} 17. Qb2 {[%clk 0:01:40]}  Qc7 {[%clk 0:01:43]} 18. b4 {[%clk 0:01:39]}  Nd7 {[%clk 0:01:44]} 19. Qe2 {[%clk 0:01:37]}  Ne5 {[%clk 0:01:39]} 20. Nb1 {[%clk 0:01:01]}  Bd7 {[%clk 0:01:35]} 21. f4 {[%clk 0:00:52]}  Nc6 {[%clk 0:01:32]} 22. a3 {[%clk 0:00:48]}  Rac8 {[%clk 0:01:28]} 23. Nb3 {[%clk 0:00:48]}  Qb8 {[%clk 0:01:08]} 24. Bb6 {[%clk 0:00:43]}  Re8 {[%clk 0:01:05]} 25. Nc3 {[%clk 0:00:43]}  Bf8 {[%clk 0:00:53]} 26. Be3 {[%clk 0:00:38]}  Rcd8 {[%clk 0:00:46]} 27. Qf3 {[%clk 0:00:21]}  Bc8 {[%clk 0:00:42]} 28. Na4 {[%clk 0:00:19]}  Ne7 {[%clk 0:00:33]} 29. Bb6 {[%clk 0:00:17]}  Rd7 {[%clk 0:00:33]} 30. Be3 {[%clk 0:00:17]}  Ng6 {[%clk 0:00:30]} 31. Nb6 {[%clk 0:00:16]}  Rdd8 {[%clk 0:00:30]} 32. a4 {[%clk 0:00:16]}  d5 {[%clk 0:00:25]} 33. cxd5 {[%clk 0:00:16]}  Bxb4 {[%clk 0:00:25]} 34. Nxc8 {[%clk 0:00:11]}  Rxc8 {[%clk 0:00:25]} 35. Rxc8 {[%clk 0:00:11]}  Qxc8 {[%clk 0:00:23]} 36. d6 {[%clk 0:00:12]}  Qd7 {[%clk 0:00:18]} 37. e5 {[%clk 0:00:12]}  Qxa4 {[%clk 0:00:18]} 38. Bc5 {[%clk 0:00:10]}  Rd8 {[%clk 0:00:11]} 39. d7 {[%clk 0:00:10]}  Bxc5+ {[%clk 0:00:09]} 40. Nxc5 {[%clk 0:00:08]}  Qb5 {[%clk 0:00:07]} 41. Qc3 {[%clk 0:00:06]}  b6 {[%clk 0:00:06]} 42. g3 {[%clk 0:00:06]}  bxc5 {[%clk 0:00:06]} 43. Qf3 {[%clk 0:00:04]}  h6 {[%clk 0:00:05]} 44. Qf2 {[%clk 0:00:02]}  Rxd7 {[%clk 0:00:05]} 45. Rxd7 {[%clk 0:00:01]}  Qxd7 {[%clk 0:00:06]} 0-1


[Site "https://www.chess.com"]

[Event "Titled Tuesday Blitz October 25 Late 2022"]
[White "Haszon, David"]
[Black "Zakaryan, David"]
[WhiteFideId "733610"]
[BlackFideId "24101923"]
[WhiteElo "2211"]
[BlackElo "2409"]
[Result "0-1"]
[Round "03"]
[TimeControl "180+1"]
[Date "2022.10.26"]
[WhiteClock "0:00:11"]
[BlackClock "0:00:14"]

1. e4 {[%clk 0:02:59]}  c5 {[%clk 0:02:57]} 2. Nf3 {[%clk 0:02:58]}  Nc6 {[%clk 0:02:56]} 3. d4 {[%clk 0:02:59]}  cxd4 {[%clk 0:02:56]} 4. Nxd4 {[%clk 0:03:00]}  g6 {[%clk 0:02:55]} 5. Nc3 {[%clk 0:02:59]}  Bg7 {[%clk 0:02:55]} 6. Be3 {[%clk 0:02:59]}  Nf6 {[%clk 0:02:55]} 7. Bc4 {[%clk 0:02:58]}  Qa5 {[%clk 0:02:47]} 8. O-O {[%clk 0:02:54]}  O-O {[%clk 0:02:47]} 9. Bb3 {[%clk 0:02:49]}  d6 {[%clk 0:02:46]} 10. h3 {[%clk 0:02:48]}  Bd7 {[%clk 0:02:40]} 11. Nd5 {[%clk 0:02:38]}  Rfe8 {[%clk 0:02:25]} 12. Nxf6+ {[%clk 0:02:26]}  Bxf6 {[%clk 0:02:21]} 13. c3 {[%clk 0:02:24]}  Rac8 {[%clk 0:02:16]} 14. f4 {[%clk 0:02:16]}  Nxd4 {[%clk 0:02:14]} 15. cxd4 {[%clk 0:01:53]}  Bb5 {[%clk 0:02:05]} 16. Rf2 {[%clk 0:01:44]}  Bc4 {[%clk 0:02:01]} 17. e5 {[%clk 0:01:42]}  Bg7 {[%clk 0:01:57]} 18. Bxc4 {[%clk 0:01:19]}  Rxc4 {[%clk 0:01:58]} 19. Qd3 {[%clk 0:01:18]}  Qd5 {[%clk 0:01:55]} 20. b3 {[%clk 0:01:16]}  Rc6 {[%clk 0:01:53]} 21. Raf1 {[%clk 0:00:56]}  dxe5 {[%clk 0:01:38]} 22. fxe5 {[%clk 0:00:55]}  f5 {[%clk 0:01:38]} 23. Qe2 {[%clk 0:00:46]}  Rec8 {[%clk 0:01:35]} 24. g4 {[%clk 0:00:39]}  e6 {[%clk 0:01:31]} 25. gxf5 {[%clk 0:00:37]}  exf5 {[%clk 0:01:31]} 26. Qf3 {[%clk 0:00:29]}  Qxf3 {[%clk 0:01:26]} 27. Rxf3 {[%clk 0:00:30]}  Rc2 {[%clk 0:01:16]} 28. R1f2 {[%clk 0:00:30]}  Kf7 {[%clk 0:01:15]} 29. Rxc2 {[%clk 0:00:22]}  Rxc2 {[%clk 0:01:16]} 30. Rf2 {[%clk 0:00:23]}  Rxf2 {[%clk 0:01:14]} 31. Kxf2 {[%clk 0:00:24]}  Ke6 {[%clk 0:01:14]} 32. Ke2 {[%clk 0:00:24]}  Kd5 {[%clk 0:01:11]} 33. Kd3 {[%clk 0:00:24]}  Bf8 {[%clk 0:01:09]} 34. a4 {[%clk 0:00:21]}  a6 {[%clk 0:01:09]} 35. Bf4 {[%clk 0:00:19]}  b5 {[%clk 0:01:09]} 36. axb5 {[%clk 0:00:19]}  axb5 {[%clk 0:01:10]} 37. Be3 {[%clk 0:00:19]}  Be7 {[%clk 0:01:10]} 38. Bh6 {[%clk 0:00:18]}  g5 {[%clk 0:01:08]} 39. Ke3 {[%clk 0:00:18]}  Bd8 {[%clk 0:01:07]} 40. Kd3 {[%clk 0:00:18]}  f4 {[%clk 0:00:43]} 41. Bg7 {[%clk 0:00:16]}  h5 {[%clk 0:00:41]} 42. Bh6 {[%clk 0:00:17]}  Be7 {[%clk 0:00:41]} 43. Bg7 {[%clk 0:00:16]}  g4 {[%clk 0:00:41]} 44. hxg4 {[%clk 0:00:17]}  hxg4 {[%clk 0:00:42]} 45. Bh6 {[%clk 0:00:17]}  f3 {[%clk 0:00:39]} 46. Ke3 {[%clk 0:00:14]}  Ba3 {[%clk 0:00:32]} 47. Kd3 {[%clk 0:00:10]}  g3 {[%clk 0:00:28]} 48. Ke3 {[%clk 0:00:10]}  g2 {[%clk 0:00:27]} 49. Kf2 {[%clk 0:00:09]}  Bb2 {[%clk 0:00:20]} 50. Be3 {[%clk 0:00:09]}  Ke4 {[%clk 0:00:18]} 51. e6 {[%clk 0:00:09]}  Ba3 {[%clk 0:00:19]} 52. d5 {[%clk 0:00:08]}  Bd6 {[%clk 0:00:19]} 53. Ba7 {[%clk 0:00:08]}  Bh2 {[%clk 0:00:19]} 54. Ke1 {[%clk 0:00:07]}  Bg3+ {[%clk 0:00:18]} 55. Kd2 {[%clk 0:00:07]}  Bf4+ {[%clk 0:00:17]} 56. Ke1 {[%clk 0:00:07]}  Bg3+ {[%clk 0:00:17]} 57. Kd2 {[%clk 0:00:07]}  Bd6 {[%clk 0:00:10]} 58. Bf2 {[%clk 0:00:02]}  Kxd5 {[%clk 0:00:10]} 59. Ke3 {[%clk 0:00:03]}  Bc5+ {[%clk 0:00:06]} 60. Kxf3 {[%clk 0:00:03]}  Bxf2 {[%clk 0:00:07]} 61. Kxf2 {[%clk 0:00:04]}  Kxe6 {[%clk 0:00:07]} 62. Kxg2 {[%clk 0:00:05]}  Kd5 {[%clk 0:00:08]} 63. Kf2 {[%clk 0:00:06]}  Kd4 {[%clk 0:00:09]} 64. Ke2 {[%clk 0:00:07]}  Kc3 {[%clk 0:00:10]} 65. Kd1 {[%clk 0:00:07]}  Kxb3 {[%clk 0:00:10]} 66. Kc1 {[%clk 0:00:07]}  Ka2 {[%clk 0:00:11]} 67. Kc2 {[%clk 0:00:08]}  b4 {[%clk 0:00:12]} 68. Kc1 {[%clk 0:00:09]}  b3 {[%clk 0:00:13]} 69. Kd2 {[%clk 0:00:09]}  b2 {[%clk 0:00:13]} 70. Kc2 {[%clk 0:00:10]}  b1=Q+ {[%clk 0:00:14]} 71. Kc3 {[%clk 0:00:11]}  Qb5 {[%clk 0:00:14]} 0-1


[Site "https://www.chess.com"]

[Event "Titled Tuesday Blitz October 25 Late 2022"]
[White "Howell, David W L"]
[Black "Lamaze, Simon"]
[WhiteFideId "410608"]
[BlackFideId "36069264"]
[WhiteElo "2567"]
[BlackElo "2272"]
[Result "1-0"]
[Round "03"]
[TimeControl "180+1"]
[Date "2022.10.26"]
[WhiteClock "0:00:36"]
[BlackClock "0:00:17"]

1. e4 {[%clk 0:02:58]}  c5 {[%clk 0:02:55]} 2. c3 {[%clk 0:02:58]}  Nf6 {[%clk 0:02:54]} 3. e5 {[%clk 0:02:58]}  Nd5 {[%clk 0:02:55]} 4. Nf3 {[%clk 0:02:59]}  e6 {[%clk 0:02:55]} 5. Bc4 {[%clk 0:02:59]}  Nc6 {[%clk 0:02:55]} 6. O-O {[%clk 0:02:57]}  d6 {[%clk 0:02:55]} 7. d4 {[%clk 0:02:57]}  cxd4 {[%clk 0:02:55]} 8. cxd4 {[%clk 0:02:58]}  Be7 {[%clk 0:02:55]} 9. exd6 {[%clk 0:02:53]}  Bxd6 {[%clk 0:02:51]} 10. Nc3 {[%clk 0:02:54]}  Nce7 {[%clk 0:02:50]} 11. Re1 {[%clk 0:02:43]}  O-O {[%clk 0:02:48]} 12. Qd3 {[%clk 0:02:43]}  a6 {[%clk 0:02:27]} 13. Bg5 {[%clk 0:02:22]}  Qd7 {[%clk 0:02:01]} 14. Rac1 {[%clk 0:01:58]}  b5 {[%clk 0:01:54]} 15. Bxd5 {[%clk 0:01:58]}  Nxd5 {[%clk 0:01:47]} 16. Nxd5 {[%clk 0:01:58]}  exd5 {[%clk 0:01:47]} 17. Qd2 {[%clk 0:01:44]}  Bb7 {[%clk 0:01:06]} 18. Bf4 {[%clk 0:01:43]}  Rfe8 {[%clk 0:01:07]} 19. Bxd6 {[%clk 0:01:36]}  Qxd6 {[%clk 0:01:08]} 20. Ne5 {[%clk 0:01:35]}  f6 {[%clk 0:01:06]} 21. Nd3 {[%clk 0:01:36]}  Rxe1+ {[%clk 0:01:03]} 22. Rxe1 {[%clk 0:01:37]}  Rc8 {[%clk 0:01:03]} 23. Nc5 {[%clk 0:01:35]}  Rc7 {[%clk 0:00:58]} 24. Re8+ {[%clk 0:01:11]}  Kf7 {[%clk 0:00:58]} 25. Qe3 {[%clk 0:01:01]}  Bc8 {[%clk 0:00:49]} 26. b4 {[%clk 0:00:49]}  Re7 {[%clk 0:00:40]} 27. Qxe7+ {[%clk 0:00:49]}  Qxe7 {[%clk 0:00:41]} 28. Rxe7+ {[%clk 0:00:50]}  Kxe7 {[%clk 0:00:42]} 29. h4 {[%clk 0:00:47]}  Kd6 {[%clk 0:00:40]} 30. Kh2 {[%clk 0:00:46]}  Kc6 {[%clk 0:00:40]} 31. Kg3 {[%clk 0:00:47]}  Kb6 {[%clk 0:00:40]} 32. Kf4 {[%clk 0:00:47]}  a5 {[%clk 0:00:41]} 33. a3 {[%clk 0:00:45]}  axb4 {[%clk 0:00:41]} 34. axb4 {[%clk 0:00:46]}  Kc6 {[%clk 0:00:42]} 35. g4 {[%clk 0:00:41]}  g6 {[%clk 0:00:37]} 36. g5 {[%clk 0:00:41]}  fxg5+ {[%clk 0:00:30]} 37. Kxg5 {[%clk 0:00:42]}  Kd6 {[%clk 0:00:25]} 38. Kf6 {[%clk 0:00:39]}  Bf5 {[%clk 0:00:25]} 39. f4 {[%clk 0:00:39]}  Bc2 {[%clk 0:00:18]} 40. Ne6 {[%clk 0:00:39]}  Bf5 {[%clk 0:00:17]} 41. Nf8 {[%clk 0:00:36]} 1-0


[Site "https://www.chess.com"]

[Event "Titled Tuesday Blitz October 25 Late 2022"]
[White "Iliaguev, Nisim"]
[Black "Manukyan, Artyom"]
[WhiteFideId "2817276"]
[BlackFideId "13305786"]
[WhiteElo "2264"]
[BlackElo "2078"]
[Result "1-0"]
[Round "03"]
[TimeControl "180+1"]
[Date "2022.10.26"]
[WhiteClock "0:00:16"]
[BlackClock "0:00:02"]

1. d4 {[%clk 0:03:00]}  d5 {[%clk 0:02:59]} 2. Nf3 {[%clk 0:03:00]}  Nf6 {[%clk 0:03:00]} 3. g3 {[%clk 0:03:01]}  e6 {[%clk 0:03:00]} 4. Bg2 {[%clk 0:03:01]}  Be7 {[%clk 0:03:01]} 5. O-O {[%clk 0:03:02]}  O-O {[%clk 0:03:02]} 6. c4 {[%clk 0:03:03]}  dxc4 {[%clk 0:03:02]} 7. Ne5 {[%clk 0:03:03]}  Nc6 {[%clk 0:03:03]} 8. Nxc6 {[%clk 0:03:04]}  bxc6 {[%clk 0:03:04]} 9. Na3 {[%clk 0:03:04]}  Bxa3 {[%clk 0:03:04]} 10. bxa3 {[%clk 0:03:05]}  Ba6 {[%clk 0:03:05]} 11. a4 {[%clk 0:03:06]}  Rb8 {[%clk 0:03:05]} 12. Ba3 {[%clk 0:03:06]}  Re8 {[%clk 0:02:57]} 13. Qd2 {[%clk 0:03:00]}  Qc8 {[%clk 0:02:53]} 14. Rfc1 {[%clk 0:02:53]}  Nd5 {[%clk 0:02:50]} 15. Qa5 {[%clk 0:02:48]}  Rb6 {[%clk 0:02:50]} 16. e4 {[%clk 0:02:44]}  Nf6 {[%clk 0:02:49]} 17. Bc5 {[%clk 0:02:42]}  Rd8 {[%clk 0:02:49]} 18. Bxb6 {[%clk 0:02:41]}  cxb6 {[%clk 0:02:49]} 19. Qc3 {[%clk 0:02:42]}  Qd7 {[%clk 0:02:41]} 20. Rd1 {[%clk 0:02:41]}  h6 {[%clk 0:02:33]} 21. f3 {[%clk 0:02:40]}  Qe7 {[%clk 0:02:31]} 22. Bf1 {[%clk 0:02:38]}  b5 {[%clk 0:02:31]} 23. Qa5 {[%clk 0:02:35]}  Bb7 {[%clk 0:01:54]} 24. axb5 {[%clk 0:02:35]}  cxb5 {[%clk 0:01:49]} 25. Qxb5 {[%clk 0:02:35]}  c3 {[%clk 0:01:50]} 26. Rac1 {[%clk 0:02:34]}  Rc8 {[%clk 0:01:49]} 27. Qb3 {[%clk 0:02:29]}  Qc7 {[%clk 0:01:46]} 28. Rd3 {[%clk 0:02:26]}  c2 {[%clk 0:01:45]} 29. Rd2 {[%clk 0:02:25]}  Qd7 {[%clk 0:01:35]} 30. Rcxc2 {[%clk 0:02:21]}  Rxc2 {[%clk 0:01:35]} 31. Qxc2 {[%clk 0:02:22]}  h5 {[%clk 0:01:35]} 32. a4 {[%clk 0:02:12]}  h4 {[%clk 0:01:35]} 33. Bb5 {[%clk 0:02:11]}  Qd8 {[%clk 0:01:32]} 34. Kg2 {[%clk 0:02:05]}  a6 {[%clk 0:01:30]} 35. Bc6 {[%clk 0:02:03]}  Bc8 {[%clk 0:01:27]} 36. e5 {[%clk 0:01:57]}  Nd5 {[%clk 0:01:19]} 37. Bxd5 {[%clk 0:01:57]}  exd5 {[%clk 0:01:20]} 38. g4 {[%clk 0:01:28]}  Be6 {[%clk 0:01:18]} 39. h3 {[%clk 0:01:26]}  Qg5 {[%clk 0:01:17]} 40. Qd3 {[%clk 0:01:23]}  a5 {[%clk 0:01:17]} 41. Re2 {[%clk 0:01:22]}  Qe7 {[%clk 0:01:12]} 42. f4 {[%clk 0:01:18]}  g6 {[%clk 0:01:12]} 43. Rf2 {[%clk 0:01:17]}  Bd7 {[%clk 0:01:01]} 44. Qe3 {[%clk 0:01:15]}  Bxa4 {[%clk 0:00:56]} 45. f5 {[%clk 0:01:15]}  Bb5 {[%clk 0:00:35]} 46. fxg6 {[%clk 0:01:06]}  fxg6 {[%clk 0:00:35]} 47. Rf6 {[%clk 0:00:57]}  Be8 {[%clk 0:00:19]} 48. Qf3 {[%clk 0:00:43]}  Bf7 {[%clk 0:00:17]} 49. e6 {[%clk 0:00:41]}  Be8 {[%clk 0:00:17]} 50. g5 {[%clk 0:00:29]}  Qd6 {[%clk 0:00:18]} 51. Qf4 {[%clk 0:00:18]}  Qa3 {[%clk 0:00:17]} 52. Qe5 {[%clk 0:00:17]}  Qb2+ {[%clk 0:00:07]} 53. Rf2 {[%clk 0:00:17]}  Qb5 {[%clk 0:00:04]} 54. Qf6 {[%clk 0:00:16]}  Qb4 {[%clk 0:00:02]} 55. e7 {[%clk 0:00:16]} 1-0


[Site "https://www.chess.com"]

[Event "Titled Tuesday Blitz October 25 Late 2022"]
[White "Ismayil, Malak"]
[Black "Yi, Richard"]
[WhiteFideId "13412604"]
[BlackFideId "2079518"]
[WhiteElo "1879"]
[BlackElo "2147"]
[Result "1-0"]
[Round "03"]
[TimeControl "180+1"]
[Date "2022.10.26"]
[WhiteClock "0:00:06"]
[BlackClock "0:00:02"]

1. e4 {[%clk 0:03:00]}  e5 {[%clk 0:02:59]} 2. Nf3 {[%clk 0:03:00]}  Nc6 {[%clk 0:03:00]} 3. Bc4 {[%clk 0:03:00]}  Bc5 {[%clk 0:02:59]} 4. d3 {[%clk 0:03:00]}  Nf6 {[%clk 0:02:59]} 5. O-O {[%clk 0:03:00]}  d6 {[%clk 0:02:59]} 6. h3 {[%clk 0:03:00]}  O-O {[%clk 0:03:00]} 7. Nc3 {[%clk 0:02:58]}  h6 {[%clk 0:02:59]} 8. Be3 {[%clk 0:02:54]}  Nd4 {[%clk 0:02:54]} 9. Bxd4 {[%clk 0:02:51]}  Bxd4 {[%clk 0:02:52]} 10. Nxd4 {[%clk 0:02:50]}  exd4 {[%clk 0:02:52]} 11. Ne2 {[%clk 0:02:51]}  c5 {[%clk 0:02:31]} 12. c3 {[%clk 0:02:51]}  Qb6 {[%clk 0:02:13]} 13. cxd4 {[%clk 0:02:49]}  Qxb2 {[%clk 0:02:06]} 14. Rb1 {[%clk 0:02:41]}  Qa3 {[%clk 0:02:06]} 15. e5 {[%clk 0:02:34]}  Ne8 {[%clk 0:01:39]} 16. f4 {[%clk 0:02:14]}  cxd4 {[%clk 0:01:36]} 17. Ng3 {[%clk 0:02:05]}  dxe5 {[%clk 0:01:35]} 18. fxe5 {[%clk 0:02:04]}  Qe7 {[%clk 0:01:30]} 19. Qh5 {[%clk 0:02:01]}  Be6 {[%clk 0:01:28]} 20. Nf5 {[%clk 0:01:55]}  Qc5 {[%clk 0:01:12]} 21. Bxe6 {[%clk 0:01:01]}  fxe6 {[%clk 0:01:10]} 22. Ng3 {[%clk 0:00:57]}  Rxf1+ {[%clk 0:00:59]} 23. Rxf1 {[%clk 0:00:58]}  Qe7 {[%clk 0:00:59]} 24. Qg4 {[%clk 0:00:50]}  Rd8 {[%clk 0:00:57]} 25. Ne4 {[%clk 0:00:46]}  Nc7 {[%clk 0:00:22]} 26. Nf6+ {[%clk 0:00:32]}  Kh8 {[%clk 0:00:21]} 27. Qg6 {[%clk 0:00:27]}  gxf6 {[%clk 0:00:17]} 28. Qxh6+ {[%clk 0:00:27]}  Kg8 {[%clk 0:00:14]} 29. exf6 {[%clk 0:00:22]}  Qf7 {[%clk 0:00:14]} 30. Rf4 {[%clk 0:00:21]}  Qh7 {[%clk 0:00:07]} 31. Rg4+ {[%clk 0:00:19]}  Kh8 {[%clk 0:00:07]} 32. Qf4 {[%clk 0:00:08]}  Nd5 {[%clk 0:00:04]} 33. Qe5 {[%clk 0:00:08]}  Qf5 {[%clk 0:00:04]} 34. Rh4+ {[%clk 0:00:04]}  Kg8 {[%clk 0:00:04]} 35. Qg3+ {[%clk 0:00:05]}  Kf7 {[%clk 0:00:01]} 36. Qg7+ {[%clk 0:00:05]}  Ke8 {[%clk 0:00:02]} 37. Rh8# {[%clk 0:00:06]} 1-0


[Site "https://www.chess.com"]